fUST/lending_fUST_20250127
["ID","MTS","AMOUNT","RATE_DAILY","PERIOD"]
[350499785,1737928246796,-500.0,0.00016962,2]
[350499786,1737928246805,-225.26,0.00016962,2]
[350499787,1737928246815,-3287.4,0.00016962,2]
[350499788,1737928246824,-500.0,0.00016962,2]
[350499789,1737928246833,-213.25,0.00016962,2]
[350499791,1737928246842,-357.99,0.00016963,2]
[350499793,1737928246958,-270.72,0.00016963,2]
[350499794,1737928246968,-500.0,0.00016963,2]
[350499795,1737928246978,-1434.03,0.00016963,2]
[350499796,1737928246987,-464.72,0.00016963,2]
[350499797,1737928246996,-500.0,0.00016963,2]
[350499798,1737928247005,-500.0,0.00016963,2]
[350499799,1737928247015,-399.98,0.00016963,2]
[350499800,1737928247025,-500.0,0.00016963,2]
[350499801,1737928247034,-500.0,0.00016964,2]
[350499802,1737928247044,-555.28289652,0.00016964,2]
[350499803,1737928247053,-500.0,0.00016965,2]
[350499804,1737928247062,-241.61,0.0001698,2]
[350499805,1737928247071,-500.0,0.00017045,2]
[350499806,1737928247082,-439.85,0.00017045,2]
[350499807,1737928247091,-500.0,0.00017045,2]
[350499808,1737928247100,-1014.46,0.00017045,2]
[350499809,1737928247111,-500.0,0.00017047,2]
[350499810,1737928247121,-465.96007,0.00017047,2]
[350499811,1737928247130,-465.96007,0.00017047,2]
[350499812,1737928247140,-150.0,0.00017056,2]
[350499813,1737928247150,-536.0,0.00017056,2]
[350499814,1737928247160,-2055.0,0.00017056,2]
[350499815,1737928247170,-2304.0,0.00017056,2]
[350499816,1737928247180,-395.0,0.00017056,2]
[350499817,1737928247189,-500.0,0.00017099,2]
[350499818,1737928247199,-500.0,0.00017099,2]
[350499819,1737928247208,-209.92,0.00017099,2]
[350499820,1737928247218,-500.0,0.00017099,2]
[350499821,1737928247227,-500.0,0.00017099,2]
[350499822,1737928247237,-738.59,0.00017099,2]
[350499823,1737928247247,-352.75,0.00017099,2]
[350499824,1737928247256,-500.0,0.00017099,2]
[350499825,1737928247265,-500.0,0.00017099,2]
[350499826,1737928247275,-597.55,0.00017099,2]
[350499827,1737928247284,-511.61,0.00017099,2]
[350499828,1737928247294,-1118.98,0.00017099,2]
[350499829,1737928247303,-500.0,0.00017099,2]
[350499830,1737928247313,-3287.4,0.00017099,2]
[350499831,1737928247322,-500.0,0.00017099,2]
[350499832,1737928247332,-500.0,0.000171,2]
[350499833,1737928247341,-1434.03,0.000171,2]
[350499834,1737928247350,-500.0,0.000171,2]
[350499835,1737928247359,-500.0,0.000171,2]
[350499836,1737928247369,-287.89,0.000171,2]
[350499837,1737928247378,-500.0,0.00017102,2]
[350499838,1737928247387,-318.30145636,0.00017107,2]
[350499839,1737928247435,-627.6,0.00017107,2]
[350499840,1737928247446,-531.2054098,0.00017107,2]
[350499842,1737928806066,212.990584,0.00013973,2]
[350499844,1737928974931,500.0,0.00015064,2]
[350499847,1737929252104,-313.749,0.00015332,2]
[350499848,1737929252126,-226.5734408,0.00015487,2]
[350499924,1737929432068,-273.4265592,0.00015332,2]
[350499926,1737929432078,-500.0,0.00015644,2]
[350499928,1737929432088,-80.5289408,0.00015972,2]
[350499931,1737929432118,-345.0,0.00015972,2]
[350499933,1737929432129,-74.4710592,0.00015972,2]
[350499935,1737929432138,-577.27448458,0.00016399,2]
[350499937,1737929432149,-195.65960989,0.000164,2]
[350499939,1737929432159,-500.0,0.00016467,2]
[350499942,1737929432169,-500.0,0.00016497,2]
[350499943,1737929432179,-300.0,0.00016497,2]
[350499945,1737929432188,-500.0,0.00016498,2]
[350499947,1737929432197,-155.73,0.00016498,2]
[350499949,1737929432207,-500.0,0.00016498,2]
[350499951,1737929432216,-2739.5,0.00016498,2]
[350499953,1737929432225,-382.49,0.00016498,2]
[350499955,1737929432235,-803.12,0.00016498,2]
[350499957,1737929432244,-500.0,0.00016498,2]
[350499959,1737929432254,-500.0,0.00016498,2]
[350499962,1737929432264,-500.0,0.00016498,2]
[350499964,1737929432274,-273.33,0.00016498,2]
[350499965,1737929432283,-500.0,0.00016498,2]
[350499968,1737929432293,-500.0,0.00016498,2]
[350499969,1737929432302,-615.49,0.00016498,2]
[350499971,1737929432312,-501.01009808,0.00016498,2]
[350499974,1737929432321,-1195.02,0.00016498,2]
[350499975,1737929432331,-611.67,0.00016498,2]
[350499977,1737929432340,-512.53,0.00016498,2]
[350499980,1737929432350,-500.0,0.00016498,2]
[350499982,1737929432360,-500.0,0.00016498,2]
[350499984,1737929432369,-300.83155344,0.00016498,2]
[350499985,1737929432378,-176.97765602,0.00016498,2]
[350499987,1737929432388,-500.0,0.00016498,2]
[350499989,1737929432397,-500.0,0.00016498,2]
[350499992,1737929432407,-500.0,0.00016498,2]
[350499993,1737929432417,-500.0,0.00016498,2]
[350499995,1737929432426,-1088.61363602,0.00016498,2]
[350500543,1737929437722,-67.66636398,0.00016498,2]
[350500546,1737929437732,-500.0,0.00016498,2]
[350500548,1737929437742,-500.0,0.00016498,2]
[350500550,1737929437752,-576.77403929,0.00016498,2]
[350500552,1737929437762,-239.03005789,0.00016498,2]
[350500554,1737929437778,-260.96994211,0.00016498,2]
[350500556,1737929437787,-500.0,0.00016498,2]
[350500558,1737929437797,-201.13883264,0.00016498,2]
[350500560,1737929437806,-500.0,0.00016498,2]
[350500562,1737929437815,-500.0,0.00016498,2]
[350500564,1737929437825,-347.59831884,0.00016498,2]
[350500566,1737929437837,-500.0,0.00016498,2]
[350500568,1737929437846,-500.0,0.00016498,2]
[350500571,1737929437856,-420.17864886,0.00016498,2]
[350500573,1737929437865,-500.0,0.00016498,2]
[350500575,1737929437874,-500.0,0.00016498,2]
[350500577,1737929437884,-500.0,0.00016498,2]
[350500579,1737929437893,-500.0,0.00016498,2]
[350500581,1737929437902,-500.0,0.00016498,2]
[350500583,1737929437918,-500.0,0.00016498,2]
[350500585,1737929437927,-501.1197293,0.00016498,2]
[350500587,1737929437937,-500.0,0.00016498,2]
[350500589,1737929437946,-625.84,0.00016498,2]
[350500592,1737929437956,-500.0,0.00016498,2]
[350500595,1737929437965,-2625.35,0.00016498,2]
[350500598,1737929437974,-500.0,0.00016498,2]
[350500600,1737929437984,-500.0,0.00016499,2]
[350500602,1737929437993,-375.17704561,0.00016499,2]
[350500604,1737929438003,-500.0,0.00016499,2]
[350500606,1737929438013,-500.0,0.00016499,2]
[350500608,1737929438022,-500.0,0.00016499,2]
[350500610,1737929438032,-500.0,0.00016499,2]
[350500612,1737929438041,-500.0,0.00016499,2]
[350500614,1737929438051,-500.0,0.00016499,2]
[350500616,1737929438060,-500.0,0.00016499,2]
[350500618,1737929438070,-492.96476629,0.00016499,2]
[350500620,1737929438081,-500.0,0.00016499,2]
[350500622,1737929438090,-254.375619,0.00016499,2]
[350500624,1737929438101,-500.0,0.00016499,2]
[350500626,1737929438113,-500.0,0.00016499,2]
[350500628,1737929438122,-500.0,0.00016499,2]
[350500630,1737929438132,-500.0,0.00016499,2]
[350500632,1737929438142,-500.0,0.000165,2]
[350500634,1737929438152,-500.0,0.000165,2]
[350500636,1737929438162,-500.0,0.000165,2]
[350500638,1737929438171,-500.0,0.000165,2]
[350500640,1737929438181,-500.0,0.000165,2]
[350500642,1737929438191,-587.738201,0.000165,2]
[350500645,1737929438201,-323.28,0.00016634,2]
[350500647,1737929438210,-774.05013032,0.00016635,2]
[350500649,1737929438222,-29.06986968,0.00016635,2]
[350500651,1737929438232,-500.0,0.00016635,2]
[350500653,1737929438241,-500.0,0.00016635,2]
[350500655,1737929438251,-500.0,0.00016635,2]
[350500657,1737929438261,-500.0,0.00016635,2]
[350500659,1737929438270,-615.49,0.00016635,2]
[350500661,1737929438280,-1195.02,0.00016635,2]
[350500663,1737929438289,-494.26748991,0.00016635,2]
[350500665,1737929438301,-5.73251009,0.00016635,2]
[350500667,1737929438312,-250.59,0.00016635,2]
[350500669,1737929438322,-500.0,0.00016635,2]
[350500671,1737929438333,-226.1,0.00016635,2]
[350500673,1737929438343,-664.92278322,0.00016635,2]
[350500676,1737929438359,-491.35721678,0.00016635,2]
[350500678,1737929438368,-500.0,0.00016635,2]
[350500680,1737929438377,-500.0,0.00016635,2]
[350500682,1737929438386,-625.84,0.00016635,2]
[350500684,1737929438396,-2625.35,0.00016635,2]
[350500686,1737929438405,-184.09,0.00016636,2]
[350500688,1737929438415,-901.657225,0.0001669,2]
[350500690,1737929438425,-901.657225,0.00016691,2]
[350500692,1737929438435,-901.657225,0.00016691,2]
[350500694,1737929438445,-153.0,0.00016767,2]
[350500696,1737929438455,-153.0,0.00016767,2]
[350500698,1737929438465,-803.12,0.00016772,2]
[350500700,1737929438475,-500.0,0.00016772,2]
[350500702,1737929438484,-10.56426059,0.00016772,2]
[350501234,1737929443796,-322.45356289,0.00016498,2]
[350501236,1737929443806,-489.43573941,0.00016772,2]
[350501237,1737929443815,-500.0,0.00016772,2]
[350501238,1737929443825,-500.0,0.00016772,2]
[350501239,1737929443837,-615.49,0.00016772,2]
[350501240,1737929443846,-326.6206977,0.00016772,2]
[350501241,1737929443857,-868.3993023,0.00016772,2]
[350501242,1737929443866,-500.0,0.00016772,2]
[350501243,1737929443876,-500.0,0.00016772,2]
[350501244,1737929443885,-109.230881,0.00016772,2]
[350501246,1737929443897,-1047.049119,0.00016772,2]
[350501248,1737929443906,-172.92,0.00016772,2]
[350501249,1737929443914,-143.980881,0.00016772,2]
[350501250,1737929443926,-356.019119,0.00016772,2]
[350501251,1737929443935,-625.6468242,0.00016772,2]
[350501262,1737929444376,-0.1931758,0.00016772,2]
[350501264,1737929444385,-1687.3068242,0.00016772,2]
[350501299,1737929445826,-938.0431758,0.00016772,2]
[350501300,1737929445837,-150.0,0.00016804,2]
[350501301,1737929445847,-901.657225,0.00016826,2]
[350501302,1737929445856,-803.12,0.00016909,2]
[350501303,1737929445865,-500.0,0.00016909,2]
[350501304,1737929445874,-419.15,0.00016909,2]
[350501305,1737929445883,-325.62,0.00016909,2]
[350501306,1737929445891,-500.0,0.00016909,2]
[350501307,1737929445901,-615.49,0.00016909,2]
[350501308,1737929445910,-1195.02,0.00016909,2]
[350501309,1737929445919,-500.0,0.00016909,2]
[350501310,1737929445929,-500.0,0.00016909,2]
[350501311,1737929445939,-1156.28,0.00016909,2]
[350501313,1737929445948,-500.0,0.00016909,2]
[350501315,1737929445957,-625.84,0.00016909,2]
[350501317,1737929445967,-2625.35,0.00016909,2]
[350501319,1737929445977,-204.0847407,0.00016956,2]
[350501321,1737929445989,-190.9152593,0.00016956,2]
[350501323,1737929445998,-354.0163353,0.00016959,2]
[350501325,1737929446007,-354.1278896,0.00016959,2]
[350501327,1737929446017,-354.1278896,0.00016959,2]
[350501329,1737929446025,-212.6195807,0.00016959,2]
[350501331,1737929446034,-246.2,0.0001698,2]
[350501333,1737929446043,-195.04,0.00016995,2]
[350501334,1737929446052,-400.3949716,0.00017045,2]
[350501335,1737929446061,-327.22204864,0.00017045,2]
[350501336,1737929446071,-500.0,0.00017045,2]
[350501337,1737929446080,-500.0,0.00017045,2]
[350501338,1737929446091,-500.0,0.00017045,2]
[350501339,1737929446100,-518.00728866,0.00017045,2]
[350501340,1737929446111,-500.0,0.00017045,2]
[350501341,1737929446120,-500.0,0.00017045,2]
[350501342,1737929446130,-526.64509038,0.00017045,2]
[350501343,1737929446139,-500.0,0.00017045,2]
[350501344,1737929446149,-500.0,0.00017045,2]
[350501345,1737929446158,-500.0,0.00017045,2]
[350501346,1737929446168,-500.0,0.00017045,2]
[350501347,1737929446177,-500.0,0.00017045,2]
[350501348,1737929446187,-500.0,0.00017045,2]
[350501349,1737929446196,-425.26645411,0.00017045,2]
[350501352,1737929962677,202.341054,0.00013973,2]
[350501358,1737930387169,300.0,0.00015035,2]
[350501368,1737930592747,199.823409,0.00015077,2]
[350501407,1737930632129,-199.823409,0.00015229,2]
[350501408,1737930632140,-199.823409,0.00015383,2]
[350501409,1737930632150,-311.4120564,0.00015489,2]
[350501410,1737930632159,-300.0,0.00015495,2]
[350501411,1737930632169,-1980.9746808,0.00015496,2]
[350501412,1737930632222,-10765.1919719,0.00015496,2]
[350501413,1737930632231,-500.0,0.00015972,2]
[350501414,1737930632242,-235.999,0.0001625,2]
[350501415,1737930632251,-1171.84479741,0.00016394,2]
[350501416,1737930632261,-195.65960988,0.00016395,2]
[350501417,1737930632271,-500.0,0.00016473,2]
[350501418,1737930632279,-500.0,0.00016473,2]
[350501419,1737930632289,-500.0,0.00016473,2]
[350501420,1737930632298,-500.0,0.00016473,2]
[350501421,1737930632307,-500.0,0.00016473,2]
[350501422,1737930632317,-500.0,0.00016473,2]
[350501423,1737930632327,-500.0,0.00016473,2]
[350501424,1737930632336,-500.0,0.00016473,2]
[350501425,1737930632346,-500.0,0.00016473,2]
[350501426,1737930632355,-306.90318233,0.00016473,2]
[350501427,1737930632365,-151.0,0.00016487,2]
[350501428,1737930632375,-500.0,0.00016493,2]
[350501429,1737930632384,-500.0,0.00016493,2]
[350501430,1737930632394,-500.0,0.00016493,2]
[350501431,1737930632404,-500.0,0.00016493,2]
[350501432,1737930632414,-500.0,0.00016493,7]
[350501433,1737930632423,-500.0,0.00016493,2]
[350501434,1737930632432,-500.0,0.00016493,2]
[350501435,1737930632441,-181.78911555,0.00016493,2]
[350501436,1737930632454,-318.21088445,0.00016493,2]
[350501437,1737930632463,-500.0,0.00016493,2]
[350501438,1737930632472,-855.94,0.00016493,2]
[350501439,1737930632482,-500.0,0.00016493,2]
[350501440,1737930632491,-500.0,0.00016493,2]
[350501441,1737930632500,-500.0,0.00016493,2]
[350501442,1737930632509,-500.0,0.00016493,2]
[350501443,1737930632518,-500.0,0.00016493,2]
[350501444,1737930632527,-637.73204876,0.00016493,2]
[350501445,1737930632537,-428.1106419,0.00016493,2]
[350501451,1737930637825,-168.99207621,0.00016493,2]
[350501452,1737930637835,-500.0,0.00016493,2]
[350501453,1737930637844,-500.0,0.00016494,2]
[350501454,1737930637854,-500.0,0.00016494,2]
[350501455,1737930637863,-415.34269292,0.00016494,2]
[350501456,1737930638006,-84.65730708,0.00016494,2]
[350501457,1737930638016,-500.0,0.00016494,2]
[350501458,1737930638025,-500.0,0.00016494,2]
[350501459,1737930638034,-500.0,0.00016494,2]
[350501460,1737930638044,-776.24,0.00016494,2]
[350501461,1737930638053,-500.0,0.00016494,2]
[350501462,1737930638062,-500.0,0.00016494,2]
[350501463,1737930638071,-503.27254069,0.00016494,2]
[350501464,1737930638081,-395.81302137,0.00016494,2]
[350501480,1737930639967,-668.99207621,0.00016328,2]
[350501482,1737930639976,-500.0,0.00016493,2]
[350501484,1737930639986,-104.18697863,0.00016494,2]
[350501486,1737930639995,-500.0,0.00016494,2]
[350501488,1737930640004,-500.0,0.00016494,2]
[350501490,1737930640014,-500.0,0.00016494,2]
[350501491,1737930640023,-500.0,0.00016494,2]
[350501492,1737930640032,-500.0,0.00016494,2]
[350501493,1737930640041,-597.85,0.00016494,2]
[350501494,1737930640050,-500.0,0.00016494,2]
[350501495,1737930640059,-617.10596632,0.00016494,2]
[350501496,1737930640068,-500.0,0.00016494,2]
[350501497,1737930640077,-514.1,0.00016494,2]
[350501498,1737930640087,-500.0,0.00016494,2]
[350501499,1737930640096,-500.0,0.00016494,2]
[350501500,1737930640106,-1539.89,0.00016494,2]
[350501501,1737930640115,-589.04,0.00016494,2]
[350501502,1737930640125,-500.0,0.00016494,2]
[350501503,1737930640134,-608.32,0.00016494,2]
[350501504,1737930640143,-521.54,0.00016494,2]
[350501505,1737930640153,-500.0,0.00016494,2]
[350501506,1737930640162,-500.0,0.00016494,2]
[350501507,1737930640171,-500.0,0.00016494,2]
[350501508,1737930640180,-500.0,0.00016494,2]
[350501509,1737930640189,-3043.65,0.00016494,2]
[350501510,1737930640199,-995.85,0.00016494,2]
[350501511,1737930640209,-500.0,0.00016495,2]
[350501512,1737930640218,-500.0,0.00016495,2]
[350501513,1737930640228,-500.0,0.00016495,2]
[350501514,1737930640239,-500.0,0.00016495,2]
[350501515,1737930640249,-500.0,0.00016495,2]
[350501516,1737930640258,-500.0,0.00016495,2]
[350501517,1737930640267,-500.0,0.00016495,2]
[350501518,1737930640276,-500.0,0.00016495,2]
[350501519,1737930640285,-500.0,0.00016495,2]
[350501520,1737930640294,-500.0,0.00016495,2]
[350501521,1737930640303,-500.0,0.00016495,2]
[350501522,1737930640312,-500.0,0.00016495,2]
[350501523,1737930640321,-500.0,0.00016495,2]
[350501524,1737930640330,-500.0,0.00016495,2]
[350501525,1737930640340,-385.6573805,0.00016495,2]
[350501526,1737930640348,-500.0,0.00016495,2]
[350501527,1737930640357,-500.0,0.00016495,2]
[350501528,1737930640367,-183.94250136,0.00016495,2]
[350501529,1737930640376,-500.0,0.00016495,2]
[350501530,1737930640384,-500.0,0.00016495,2]
[350501531,1737930640394,-500.0,0.00016495,2]
[350501532,1737930640404,-500.0,0.00016495,2]
[350501533,1737930640415,-500.0,0.00016495,2]
[350501534,1737930640424,-500.0,0.00016495,2]
[350501535,1737930640433,-500.0,0.00016495,2]
[350501536,1737930640442,-500.0,0.00016495,2]
[350501537,1737930640451,-500.0,0.00016495,2]
[350501538,1737930640460,-500.0,0.00016495,2]
[350501539,1737930640469,-500.0,0.00016495,2]
[350501540,1737930640478,-500.0,0.00016495,2]
[350501541,1737930640488,-500.0,0.00016495,2]
[350501542,1737930640496,-500.0,0.00016495,2]
[350501543,1737930640505,-500.0,0.00016495,2]
[350501544,1737930640514,-500.0,0.00016495,2]
[350501545,1737930640523,-500.0,0.00016495,2]
[350501546,1737930640533,-500.0,0.00016495,2]
[350501547,1737930640542,-500.0,0.00016495,2]
[350501548,1737930640550,-500.0,0.00016495,2]
[350501549,1737930640559,-500.0,0.00016495,2]
[350501550,1737930640568,-500.0,0.00016495,2]
[350501551,1737930640577,-500.0,0.00016495,2]
[350501552,1737930640587,-500.0,0.00016495,2]
[350501553,1737930640596,-500.0,0.00016495,2]
[350501554,1737930640604,-500.0,0.00016495,2]
[350501555,1737930640613,-500.0,0.00016495,2]
[350501556,1737930640623,-500.0,0.00016495,2]
[350501557,1737930640632,-500.0,0.00016495,2]
[350501558,1737930640641,-500.0,0.00016495,2]
[350501559,1737930640650,-500.0,0.00016495,2]
[350501560,1737930640659,-500.0,0.00016495,2]
[350501561,1737930640668,-500.0,0.00016495,2]
[350501562,1737930640678,-500.0,0.00016495,2]
[350501563,1737930640687,-500.0,0.00016495,2]
[350501564,1737930640697,-350.0,0.00016495,2]
[350501565,1737930640706,-500.0,0.00016495,2]
[350501566,1737930640716,-500.0,0.00016495,2]
[350501567,1737930640727,-500.0,0.00016495,2]
[350501568,1737930640736,-500.0,0.00016495,2]
[350501569,1737930640746,-500.0,0.00016495,2]
[350501570,1737930640755,-450.0,0.00016495,2]
[350501571,1737930640766,-500.0,0.00016495,2]
[350501572,1737930640776,-500.0,0.00016495,2]
[350501573,1737930640785,-500.0,0.00016495,2]
[350501574,1737930640794,-500.0,0.00016495,2]
[350501575,1737930640803,-500.0,0.00016495,2]
[350501576,1737930640813,-500.0,0.00016495,2]
[350501577,1737930640823,-500.0,0.00016495,2]
[350501578,1737930640832,-185.4881447,0.00016495,2]
[350501579,1737930640841,-500.0,0.00016495,2]
[350501580,1737930640850,-500.0,0.00016495,2]
[350501581,1737930640859,-500.0,0.00016495,2]
[350501582,1737930640868,-355.02,0.00016495,2]
[350501583,1737930640877,-500.0,0.00016495,2]
[350501584,1737930640886,-9196.91886965,0.00016495,5]
[350501585,1737930640897,-35762.75523511,0.00016495,5]
[350501586,1737930640907,-741.01821937,0.00016496,2]
[350501587,1737930640917,-500.0,0.00016496,2]
[350501588,1737930640928,-500.0,0.00016496,2]
[350501589,1737930640937,-500.0,0.00016496,2]
[350501590,1737930640948,-590.1782655,0.00016496,2]
[350501591,1737930640958,-500.0,0.00016496,2]
[350501592,1737930640967,-500.0,0.00016496,2]
[350501593,1737930640977,-500.0,0.00016496,2]
[350501594,1737930640986,-500.0,0.00016496,2]
[350501595,1737930640996,-500.0,0.00016496,2]
[350501596,1737930641006,-500.0,0.00016496,2]
[350501597,1737930641015,-500.0,0.00016496,2]
[350501598,1737930641025,-500.0,0.00016496,2]
[350501599,1737930641035,-500.0,0.00016496,2]
[350501600,1737930641043,-500.0,0.00016496,2]
[350501601,1737930641053,-500.0,0.00016496,2]
[350501602,1737930641062,-500.0,0.00016496,2]
[350501603,1737930641072,-636.24,0.00016496,2]
[350501604,1737930641081,-500.0,0.00016496,2]
[350501605,1737930641091,-500.0,0.00016496,2]
[350501606,1737930641100,-500.0,0.00016496,2]
[350501607,1737930641110,-500.0,0.00016496,2]
[350501608,1737930641119,-500.0,0.00016496,2]
[350501609,1737930641128,-620.9,0.00016496,2]
[350501610,1737930641138,-629.33,0.00016496,2]
[350501611,1737930641147,-567.38,0.00016496,2]
[350501612,1737930641157,-500.0,0.00016496,2]
[350501613,1737930641166,-500.0,0.00016496,2]
[350501614,1737930641175,-500.0,0.00016496,2]
[350501615,1737930641185,-500.0,0.00016496,2]
[350501616,1737930641194,-537.82,0.00016496,2]
[350501617,1737930641203,-500.0,0.00016496,2]
[350501618,1737930641213,-500.0,0.00016496,2]
[350501619,1737930641224,-500.0,0.00016496,2]
[350501620,1737930641234,-500.0,0.00016496,2]
[350501621,1737930641245,-500.0,0.00016496,2]
[350501622,1737930641255,-500.0,0.00016496,2]
[350501623,1737930641265,-502.36043861,0.00016496,2]
[350501624,1737930641275,-500.0,0.00016496,2]
[350501625,1737930641284,-500.0,0.00016496,2]
[350501626,1737930641295,-500.0,0.00016496,2]
[350501627,1737930641304,-500.0,0.00016496,2]
[350501628,1737930641313,-500.0,0.00016496,2]
[350501629,1737930641323,-500.0,0.00016496,2]
[350501630,1737930641332,-500.0,0.00016496,2]
[350501631,1737930641342,-500.0,0.00016496,2]
[350501632,1737930641351,-500.0,0.00016496,2]
[350501633,1737930641361,-500.0,0.00016496,2]
[350501634,1737930641370,-500.0,0.00016496,2]
[350501635,1737930641379,-500.0,0.00016496,2]
[350501636,1737930641389,-500.0,0.00016496,2]
[350501637,1737930641398,-500.0,0.00016496,2]
[350501638,1737930641407,-500.0,0.00016496,2]
[350501639,1737930641417,-500.0,0.00016496,2]
[350501640,1737930641426,-500.0,0.00016496,2]
[350501641,1737930641435,-500.0,0.00016496,2]
[350501642,1737930641445,-500.0,0.00016496,2]
[350501643,1737930641455,-500.0,0.00016496,2]
[350501644,1737930641464,-500.0,0.00016496,2]
[350501645,1737930641474,-500.0,0.00016496,2]
[350501646,1737930641483,-500.0,0.00016496,2]
[350501647,1737930641492,-595.02,0.00016496,2]
[350501648,1737930641501,-500.0,0.00016496,2]
[350501649,1737930641511,-500.0,0.00016496,2]
[350501650,1737930641520,-500.0,0.00016496,2]
[350501651,1737930641529,-500.0,0.00016496,2]
[350501652,1737930641539,-500.0,0.00016496,2]
[350501653,1737930641548,-500.0,0.00016496,2]
[350501654,1737930641557,-500.0,0.00016496,2]
[350501655,1737930641567,-500.0,0.00016496,2]
[350501656,1737930641577,-582.32,0.00016496,2]
[350501657,1737930641586,-500.0,0.00016496,2]
[350501658,1737930641771,-500.0,0.00016496,2]
[350501659,1737930641783,-500.0,0.00016496,2]
[350501660,1737930641795,-500.0,0.00016496,2]
[350501661,1737930641806,-500.0,0.00016496,2]
[350501662,1737930641815,-500.0,0.00016496,2]
[350501663,1737930641825,-500.0,0.00016496,2]
[350501664,1737930641834,-500.0,0.00016496,2]
[350501665,1737930641844,-500.0,0.00016496,2]
[350501666,1737930641854,-500.0,0.00016496,2]
[350501667,1737930641863,-500.0,0.00016496,2]
[350501668,1737930641873,-500.0,0.00016496,2]
[350501669,1737930641883,-500.0,0.00016496,2]
[350501670,1737930641894,-500.0,0.00016496,2]
[350501671,1737930641904,-500.0,0.00016496,2]
[350501672,1737930641915,-500.0,0.00016496,2]
[350501673,1737930641924,-500.0,0.00016496,2]
[350501674,1737930641934,-506.95106983,0.00016496,2]
[350501675,1737930641943,-500.0,0.00016496,2]
[350501676,1737930641953,-500.0,0.00016496,2]
[350501677,1737930641963,-500.0,0.00016496,2]
[350501678,1737930641973,-500.0,0.00016496,2]
[350501679,1737930641983,-500.0,0.00016496,2]
[350501680,1737930641992,-500.0,0.00016496,2]
[350501681,1737930642002,-500.0,0.00016496,2]
[350501682,1737930642011,-199.57844648,0.00016496,2]
[350501683,1737930642021,-500.0,0.00016496,2]
[350501684,1737930642031,-500.0,0.00016496,2]
[350501685,1737930642041,-500.0,0.00016496,2]
[350501686,1737930642050,-500.0,0.00016496,2]
[350501687,1737930642060,-500.0,0.00016496,2]
[350501688,1737930642070,-500.0,0.00016496,2]
[350501689,1737930642079,-597.66,0.00016496,2]
[350501690,1737930642089,-500.0,0.00016496,2]
[350501691,1737930642098,-500.0,0.00016497,2]
[350501692,1737930642107,-517.56,0.00016497,2]
[350501693,1737930642116,-500.0,0.00016497,2]
[350501694,1737930642126,-500.0,0.00016497,2]
[350501695,1737930642135,-500.0,0.00016497,2]
[350501696,1737930642146,-378.36293063,0.00016497,2]
[350501697,1737930642155,-500.0,0.00016497,2]
[350501698,1737930642165,-500.0,0.00016497,2]
[350501699,1737930642174,-500.0,0.00016497,2]
[350501700,1737930642184,-500.0,0.00016497,2]